bitfinex-derivatives/quotes_BTCF0:USTF0_20240910
["timestamp","ask_amount","ask_price","bid_price","bid_amount"]
[1725963991723,0.087477,57155.0,57154.0,0.087475]
[1725963992033,0.087487,57148.0,57147.0,0.0041]
[1725963992222,0.08749,57147.0,57145.0,0.087491]
[1725963992427,0.08749,57146.0,57145.0,0.087491]
[1725963992736,0.087494,57144.0,57142.0,0.087496]
[1725963993335,0.087494,57144.0,57143.0,0.087495]
[1725963993738,0.0469,57147.0,57142.0,0.16]
[1725963993925,0.0469,57147.0,57146.0,0.0004]
[1725963994130,0.134389,57147.0,57146.0,0.08789]
[1725963995230,0.0469,57147.0,57146.0,0.08789]
[1725963995434,0.087483,57151.0,57149.0,0.087485]
[1725963995635,0.087484,57150.0,57149.0,0.087485]
[1725963997927,0.0486,57153.0,57152.0,0.087481]
[1725963998235,0.134179,57154.0,57152.0,0.0004]
[1725963998534,0.134179,57154.0,57153.0,0.08748]
[1725963998735,0.0041,57160.0,57152.0,0.0004]
[1725963998736,0.087473,57158.0,57156.0,0.087475]
[1725963998932,0.087473,57158.0,57157.0,0.087473]
[1725964000728,0.087468,57161.0,57157.0,0.16]
[1725964000939,0.087468,57161.0,57160.0,0.087869]
[1725964001841,0.1397,57163.0,57162.0,0.087466]
[1725964002035,0.1397,57163.0,57162.0,0.087866]
[1725964002036,0.227164,57163.0,57162.0,0.087866]
[1725964002738,0.1397,57163.0,57162.0,0.1576331]
[1725964002946,0.0941,57163.0,57162.0,0.087866]
[1725964003129,0.087459,57167.0,57166.0,0.087459]
[1725964003330,0.087459,57167.0,57166.0,0.15763094]
[1725964003832,0.087459,57167.0,57166.0,0.15762591]
[1725964004033,0.087459,57167.0,57166.0,0.15762544]
[1725964004939,0.089459,57167.0,57166.0,0.07116644]
[1725964005127,0.089459,57167.0,57166.0,0.0014]
[1725964005332,0.088459,57167.0,57166.0,0.0004]
[1725964005527,0.089459,57167.0,57166.0,0.0014]
[1725964006232,0.089459,57167.0,57166.0,0.08886]
[1725964006233,0.134759,57167.0,57166.0,0.08886]
[1725964007530,0.134759,57167.0,57166.0,0.08786]
[1725964007531,0.133759,57167.0,57166.0,0.08786]
[1725964007736,0.134759,57167.0,57166.0,0.08886]
[1725964010146,0.089459,57167.0,57166.0,0.08886]
[1725964010741,0.18598155,57167.0,57166.0,0.08886]
[1725964011346,0.37774321,57167.0,57166.0,0.08886]
[1725964013037,0.18598155,57167.0,57166.0,0.08886]
[1725964013457,0.18598362,57167.0,57166.0,0.08886]
[1725964014151,0.27344262,57167.0,57166.0,0.0014]
[1725964014648,0.44781368,57167.0,57166.0,0.0014]
[1725964015656,0.36035468,57167.0,57166.0,0.08886]
[1725964017648,0.26383006,57167.0,57166.0,0.08886]
[1725964017960,0.089459,57167.0,57166.0,0.08886]
[1725964021655,0.264376,57167.0,57166.0,0.07119533]
[1725964021856,0.264376,57167.0,57166.0,0.0014]
[1725964022561,1.1268,57167.0,57162.0,0.05235986]
[1725964022761,0.174928,57163.0,57161.0,0.05235986]
[1725964022961,0.262401,57161.0,57160.0,0.05235986]
[1725964023156,0.17494,57159.0,57158.0,0.05235986]
[1725964023355,0.17494,57159.0,57156.0,0.06980993]
[1725964023356,0.087473,57157.0,57156.0,0.06980993]
[1725964023560,0.247473,57157.0,57156.0,0.06983875]
[1725964023967,0.334946,57157.0,57156.0,0.06983875]
[1725964024165,0.247473,57157.0,57150.0,0.087484]
[1725964024359,0.247473,57157.0,57153.0,0.08729271]
[1725964024360,0.087478,57154.0,57153.0,0.08729271]
[1725964024557,0.087478,57154.0,57153.0,0.12947868]
[1725964025058,0.087478,57154.0,57153.0,0.12938298]
[1725964025859,0.087478,57154.0,57149.0,0.02504385]
[1725964026066,0.087478,57154.0,57148.0,0.16]
[1725964026658,0.12209685,57157.0,57156.0,0.087475]
[1725964027059,0.12209685,57157.0,57156.0,0.087875]
[1725964027558,0.04283986,57157.0,57156.0,0.087875]
[1725964027757,0.04283986,57157.0,57156.0,0.247875]
[1725964027958,0.087469,57160.0,57159.0,0.08747]
[1725964028263,0.13030773,57160.0,57159.0,0.08787]
[1725964029267,0.13030773,57160.0,57159.0,0.0004]
[1725964029769,0.13230773,57160.0,57159.0,0.0014]
[1725964030276,0.13030773,57160.0,57159.0,0.0024]
[1725964032062,0.13030851,57160.0,57159.0,0.0024]
[1725964032664,0.18400477,57160.0,57159.0,0.0024]
[1725964032881,0.174938,57160.0,57159.0,0.21928552]
[1725964033080,0.087469,57160.0,57159.0,0.0024]
[1725964033370,0.174938,57160.0,57159.0,0.0024]
[1725964033580,0.224338,57160.0,57159.0,0.07230085]
[1725964034174,0.224338,57160.0,57159.0,0.0024]
[1725964034367,0.311807,57160.0,57159.0,0.0024]
[1725964034569,1.436647,57160.0,57159.0,0.0024]
[1725964034871,1.436647,57160.0,57159.0,0.0548228]
[1725964035067,1.436647,57160.0,57156.0,0.06990085]
[1725964035068,0.262419,57157.0,57156.0,0.06990085]
[1725964035264,0.087475,57156.0,57154.0,0.06990085]
[1725964035471,0.16,57155.0,57154.0,0.06990085]
[1725964035671,0.859834,57155.0,57154.0,0.06990085]
[1725964035977,1.459834,57155.0,57154.0,0.06990085]
[1725964036173,0.174956,57154.0,57153.0,0.06990085]
[1725964036375,0.859876,57154.0,57153.0,0.06990085]
[1725964037567,0.859876,57154.0,57153.0,0.07290085]
[1725964037768,0.334956,57154.0,57153.0,0.07290085]
[1725964038670,0.334956,57154.0,57153.0,0.007]
[1725964040580,0.36015628,57154.0,57153.0,0.007]
[1725964041469,0.36015628,57154.0,57153.0,0.07690085]
[1725964041676,0.36015628,57154.0,57153.0,0.007]
[1725964043374,0.36015628,57154.0,57153.0,0.07690085]
[1725964043582,0.36015628,57154.0,57153.0,0.007]
[1725964045583,0.36015628,57154.0,57153.0,0.07690085]
[1725964046083,0.11267828,57154.0,57153.0,0.007]
[1725964047786,0.15552314,57154.0,57153.0,0.007]
[1725964049482,0.31552314,57154.0,57153.0,0.007]
[1725964049681,0.45511134,57154.0,57153.0,0.007]
[1725964051196,0.31552314,57154.0,57153.0,0.007]
[1725964052395,0.40300114,57154.0,57153.0,0.007]
[1725964052689,0.31552314,57154.0,57153.0,0.007]
[1725964053299,0.40300114,57154.0,57153.0,0.007]
[1725964054697,0.31552314,57154.0,57153.0,0.007]
[1725964054900,0.40300114,57154.0,57153.0,0.007]
[1725964055096,0.31552314,57154.0,57153.0,0.007]
[1725964055894,0.36015628,57154.0,57153.0,0.007]
[1725964056491,0.27267828,57154.0,57153.0,0.007]
[1725964056994,0.36015628,57154.0,57153.0,0.007]
[1725964058303,0.27267828,57154.0,57153.0,0.007]
[1725964058696,0.27267828,57154.0,57153.0,0.09437572]
[1725964059401,0.27267828,57154.0,57153.0,0.22372301]
[1725964059799,0.087478,57154.0,57153.0,0.13634729]
[1725964059999,0.13687,57160.0,57153.0,0.13634729]
[1725964060000,0.087474,57157.0,57156.0,0.087473]
[1725964060301,0.0041,57164.0,57163.0,0.087464]
[1725964060606,0.16,57173.0,57163.0,0.087464]
[1725964060607,0.087457,57168.0,57163.0,0.12963398]
[1725964060906,0.087457,57168.0,57167.0,0.08779361]
[1725964061098,0.087455,57169.0,57168.0,0.087456]
[1725964061290,0.087457,57168.0,57166.0,0.08739361]
[1725964061496,0.087458,57167.0,57166.0,0.08739361]
[1725964062007,0.087458,57167.0,57166.0,0.21619414]
[1725964062396,0.087458,57167.0,57165.0,0.08739361]
[1725964062903,0.087458,57167.0,57166.0,0.08746]
[1725964063401,0.087458,57167.0,57166.0,0.08846]
[1725964063795,0.087458,57167.0,57166.0,0.08746]
[1725964064000,0.092458,57167.0,57166.0,0.08846]
[1725964064600,0.092458,57167.0,57166.0,0.08946]
[1725964066197,0.092458,57167.0,57166.0,0.15926213]
[1725964067502,0.005,57167.0,57166.0,0.15926213]
[1725964067802,0.005,57167.0,57166.0,0.17685361]
[1725964068103,0.005,57167.0,57166.0,0.21786358]
[1725964069196,0.005,57167.0,57166.0,0.3050216]
[1725964070811,0.05868192,57167.0,57166.0,0.08946]
[1725964071009,0.10150986,57167.0,57166.0,0.08946]
[1725964071498,0.10150986,57167.0,57166.0,0.17692]
[1725964071695,0.10150986,57167.0,57166.0,0.13856]
[1725964072306,0.10150985,57167.0,57166.0,0.22602]
[1725964072503,0.10150985,57167.0,57166.0,0.13856]
[1725964072900,0.10150985,57167.0,57166.0,0.22602]
[1725964074308,0.16149316,57167.0,57166.0,0.22602]
[1725964074906,0.21517507,57167.0,57166.0,0.22602]
[1725964075110,0.25800301,57167.0,57166.0,0.22602]
[1725964075699,0.10150985,57167.0,57166.0,0.22602]
[1725964076510,0.25800301,57167.0,57166.0,0.31348]
[1725964076814,0.09650985,57167.0,57166.0,0.32448]
[1725964077314,0.17393866,57170.0,57169.0,0.262365]
[1725964077510,0.0041,57171.0,57170.0,0.262362]
[1725964078015,0.0041,57171.0,57170.0,0.33207353]
[1725964078309,0.0041,57171.0,57170.0,0.262362]
[1725964079613,0.0041,57171.0,57170.0,0.33499114]
[1725964080408,0.0041,57171.0,57170.0,0.33899114]
[1725964080921,0.0041,57171.0,57170.0,0.25053714]
[1725964081117,0.0041,57171.0,57170.0,0.20651047]
[1725964081414,0.0041,57171.0,57170.0,0.36451047]
[1725964081621,0.0041,57171.0,57170.0,0.43713961]
[1725964082712,0.0041,57171.0,57170.0,0.43613961]
[1725964083521,0.0041,57171.0,57170.0,0.52459361]
[1725964083711,0.0041,57171.0,57170.0,0.52159361]
[1725964083912,0.0041,57171.0,57170.0,0.52459361]
[1725964084312,0.0041,57171.0,57170.0,0.45096447]
[1725964084515,0.0041,57171.0,57170.0,0.45396447]
[1725964086517,0.0041,57171.0,57170.0,0.45096447]
[1725964086719,0.0041,57171.0,57170.0,0.45496447]
[1725964087228,0.0041,57171.0,57170.0,0.45396447]
[1725964087527,0.12168876,57172.0,57170.0,1.57872447]
[1725964087728,0.15017923,57176.0,57175.0,0.262338]
[1725964088025,0.0284,57176.0,57175.0,0.422338]
[1725964088328,0.0284,57176.0,57175.0,1.547058]
[1725964089325,1e-06,57176.0,57175.0,1.634504]
[1725964090224,1e-06,57176.0,57175.0,1.474504]
[1725964090427,0.12390319,57176.0,57175.0,1.474504]
[1725964091223,0.12390319,57176.0,57175.0,1.634504]
[1725964093025,0.002001,57176.0,57175.0,1.76253276]
[1725964093522,0.07054772,57191.0,57188.0,0.087426]
[1725964094020,0.07054772,57191.0,57188.0,0.088226]
[1725964094827,0.07054772,57191.0,57188.0,0.089226]
[1725964095634,0.07054772,57191.0,57188.0,0.090226]
[1725964097734,0.07054772,57191.0,57188.0,0.11621191]
[1725964098624,0.07054772,57191.0,57188.0,0.090226]
[1725964099529,0.16,57190.0,57188.0,0.090226]
[1725964100135,0.187425,57189.0,57188.0,0.090226]
[1725964100531,0.187425,57189.0,57188.0,0.0028]
[1725964100722,0.27485,57189.0,57188.0,0.0028]
[1725964100927,0.37133685,57189.0,57188.0,0.0028]
[1725964102435,1.58336184,57189.0,57181.0,0.087436]
[1725964102635,0.187435,57182.0,57181.0,0.087436]
[1725964102835,0.28392184,57182.0,57181.0,0.087436]
[1725964103529,0.28392184,57182.0,57181.0,0.088436]
[1725964103530,0.18392184,57182.0,57181.0,0.088436]
[1725964104037,0.18392184,57182.0,57181.0,0.089436]
[1725964105342,0.18492184,57182.0,57181.0,0.089436]
[1725964106131,0.09748684,57182.0,57181.0,0.089436]
[1725964106330,0.09748684,57182.0,57181.0,0.176873]
[1725964107339,0.28899133,57182.0,57181.0,0.176873]
[1725964107742,0.09748388,57182.0,57181.0,0.176873]
[1725964107949,0.001,57182.0,57181.0,0.176873]
[1725964110039,0.001,57182.0,57181.0,1.301513]
[1725964110234,0.0008,57189.0,57188.0,0.174852]
[1725964110434,0.0008,57189.0,57188.0,0.335652]
[1725964110646,0.0008,57189.0,57188.0,0.40548436]
[1725964110842,0.0008,57189.0,57188.0,0.335652]
[1725964111935,0.0008,57189.0,57188.0,0.40547134]
[1725964112444,0.0008,57189.0,57188.0,0.40647134]
[1725964112750,0.0018,57189.0,57188.0,0.337652]
[1725964113137,0.0018,57189.0,57188.0,0.40746801]
[1725964113338,0.0018,57189.0,57188.0,0.337652]
[1725964113747,0.0018,57189.0,57188.0,0.40747429]
[1725964114041,0.0018,57189.0,57188.0,0.40647429]
[1725964114245,0.0018,57189.0,57188.0,0.40747429]
[1725964114449,0.0018,57189.0,57188.0,0.337652]
[1725964114941,0.0018,57189.0,57188.0,0.43334319]
[1725964115456,0.0018,57189.0,57188.0,0.36352001]
[1725964115641,0.0018,57189.0,57188.0,0.18592393]
[1725964115942,0.09827578,57189.0,57188.0,0.11609401]
[1725964116541,0.49583053,57189.0,57188.0,0.0028]
[1725964116739,0.49583053,57189.0,57187.0,0.087427]
[1725964116740,0.087428,57188.0,57187.0,0.087427]
[1725964116947,0.34150853,57188.0,57187.0,0.087427]
[1725964117340,0.34151667,57188.0,57187.0,0.087427]
[1725964117949,0.34151667,57188.0,57187.0,0.088427]
[1725964118834,0.15918867,57188.0,57187.0,0.088427]
[1725964119339,0.16118867,57188.0,57187.0,0.089427]
[1725964120240,0.24861467,57188.0,57187.0,0.089427]
[1725964120648,0.24861467,57188.0,57187.0,0.11564006]
[1725964122944,0.089426,57188.0,57187.0,0.11564006]
[1725964123150,0.002,57188.0,57187.0,0.11564006]
[1725964123344,0.002,57188.0,57187.0,0.27289798]
[1725964124543,0.002,57188.0,57187.0,0.11564006]
[1725964125446,0.089426,57188.0,57187.0,0.089427]
[1725964131249,0.19380025,57188.0,57187.0,0.089427]
[1725964131757,0.089426,57188.0,57187.0,0.089427]
[1725964133450,0.19380025,57188.0,57187.0,0.089427]
[1725964135358,0.089426,57188.0,57187.0,0.089427]
[1725964137954,0.18590845,57188.0,57187.0,0.089427]
[1725964140662,0.18590825,57188.0,57187.0,0.089427]
[1725964143658,0.09848225,57188.0,57187.0,0.089427]
[1725964143960,0.13225433,57188.0,57187.0,0.15390835]
[1725964144164,0.09848225,57188.0,57187.0,0.15390835]
[1725964146056,0.002,57188.0,57187.0,0.15390835]
[1725964146558,0.002,57188.0,57187.0,0.06648035]
[1725964154164,0.002,57188.0,57187.0,0.16648035]
[1725964155172,0.002,57188.0,57187.0,0.21891188]
[1725964160474,0.09847671,57188.0,57187.0,0.16648035]
[1725964160674,0.09847671,57188.0,57187.0,0.06648035]
[1725964160971,0.18590271,57188.0,57187.0,0.06648035]
[1725964165075,0.087431,57185.0,57184.0,0.11296974]
[1725964165276,0.18390771,57185.0,57184.0,0.11296974]
[1725964166284,0.18590771,57185.0,57184.0,0.11296974]
[1725964166586,0.18890771,57185.0,57184.0,0.11296974]
[1725964167080,0.37633871,57185.0,57184.0,0.02553874]
[1725964167293,0.087434,57183.0,57182.0,0.087435]
[1725964167480,0.18391071,57183.0,57182.0,0.087435]
[1725964168189,0.087441,57180.0,57179.0,0.08744]
[1725964168389,0.18391771,57180.0,57179.0,0.08744]
[1725964168587,0.04369441,57180.0,57179.0,0.47018434]
[1725964169282,0.04369441,57180.0,57179.0,0.37018434]
[1725964169582,0.04369441,57180.0,57179.0,0.39553133]
[1725964169782,0.13113541,57180.0,57179.0,0.23405137]
[1725964169985,1.16837441,57180.0,57173.0,0.10895501]
[1725964170185,0.274892,57175.0,57174.0,0.23407005]
[1725964170382,0.274892,57175.0,57174.0,0.12921504]
[1725964170580,0.087449,57173.0,57172.0,0.08739399]
[1725964170782,0.087451,57172.0,57171.0,0.08739399]
[1725964170982,0.1,57172.0,57171.0,0.12907472]
[1725964171288,0.187451,57172.0,57171.0,0.12907472]
[1725964171582,0.087453,57171.0,57170.0,0.08726395]
[1725964171789,0.136553,57171.0,57170.0,0.21614956]
[1725964172375,0.136553,57171.0,57170.0,0.21614966]
[1725964172577,0.087454,57170.0,57169.0,0.08726395]
[1725964172784,0.132454,57170.0,57169.0,0.21612112]
[1725964173579,0.132454,57170.0,57168.0,0.17471995]
[1725964173580,0.087455,57169.0,57168.0,0.17471995]
[1725964173781,0.045,57170.0,57168.0,0.30353744]
[1725964173982,0.132454,57170.0,57169.0,0.012]
[1725964174188,0.132454,57170.0,57169.0,0.0124]
[1725964174589,0.132454,57170.0,57169.0,0.0004]
[1725964175288,0.132454,57170.0,57169.0,0.0124]
[1725964175691,0.25430614,57170.0,57169.0,0.0124]
[1725964176382,0.25430614,57170.0,57169.0,0.0244]
[1725964178291,0.132454,57170.0,57169.0,0.111855]
[1725964178789,0.087454,57170.0,57169.0,0.111855]
[1725964180087,0.0491,57171.0,57170.0,0.087454]
[1725964180295,0.136552,57171.0,57170.0,0.087854]
[1725964181495,0.136552,57171.0,57170.0,0.098854]
[1725964182488,0.136552,57171.0,57170.0,0.109854]
[1725964187101,0.07591124,57176.0,57172.0,0.087451]
[1725964187102,0.087449,57173.0,57172.0,0.087451]
[1725964187693,0.087449,57173.0,57172.0,0.087851]
[1725964188387,0.045,57176.0,57175.0,0.087446]
[1725964188586,0.045,57176.0,57175.0,0.1575546]
[1725964188790,0.045,57176.0,57175.0,0.087846]
[1725964189790,0.132444,57176.0,57175.0,0.1575546]
[1725964190100,0.132444,57176.0,57175.0,0.098846]
[1725964190593,0.17527135,57176.0,57175.0,0.093846]
[1725964190797,0.17527135,57176.0,57175.0,0.098846]
[1725964191185,0.17527135,57176.0,57175.0,0.093846]
[1725964191389,0.17527135,57176.0,57175.0,0.098846]
[1725964191602,0.31453094,57176.0,57175.0,0.098846]
[1725964191801,0.34062785,57176.0,57175.0,0.0114]
[1725964192093,0.52807185,57176.0,57175.0,0.0114]
[1725964192302,0.38881226,57176.0,57175.0,0.0114]
[1725964192498,0.38881226,57176.0,57175.0,0.0064]
[1725964192695,0.44249442,57176.0,57175.0,0.0064]
[1725964192998,1.5135327,57176.0,57175.0,0.0024]
[1725964193293,1.56821639,57176.0,57175.0,0.0014]
[1725964193500,1.74329088,57176.0,57175.0,0.0004]
[1725964194297,1.83073488,57176.0,57175.0,0.0004]
[1725964194596,0.087457,57168.0,57165.0,0.08746]
[1725964194796,0.08746,57166.0,57165.0,0.08746]
[1725964195100,0.087466,57162.0,57161.0,0.37567342]
[1725964195302,0.23029379,57162.0,57161.0,0.37567342]
[1725964195503,0.23029379,57162.0,57161.0,0.46086042]
[1725964195687,0.28398838,57162.0,57161.0,0.46086042]
[1725964196099,0.18398838,57162.0,57161.0,0.46086042]
[1725964196510,0.34056266,57162.0,57161.0,0.46086042]
[1725964196795,0.34056266,57162.0,57161.0,0.47486042]
[1725964197393,0.13029379,57162.0,57161.0,0.47486042]
[1725964197593,0.13030405,57162.0,57161.0,0.47486042]
[1725964197995,0.13030405,57162.0,57161.0,0.48886042]
[1725964198192,0.13030405,57162.0,57161.0,0.40139342]
[1725964198193,0.22666259,57162.0,57161.0,0.40139342]
[1725964198395,0.26950064,57162.0,57161.0,0.40139342]
[1725964198599,0.087466,57162.0,57161.0,0.40139342]
[1725964198794,0.087466,57162.0,57161.0,0.48886042]
[1725964199098,0.16045577,57165.0,57164.0,0.087463]
[1725964199300,0.07299377,57165.0,57164.0,0.087863]
[1725964199500,0.087459,57167.0,57166.0,0.08746]
[1725964199797,0.087459,57167.0,57166.0,0.30280201]
[1725964200301,0.087454,57170.0,57169.0,0.087455]
[1725964200505,0.087454,57170.0,57169.0,0.087855]
[1725964201299,0.07211953,57172.0,57169.0,0.087855]
[1725964201300,0.07211953,57172.0,57171.0,0.087452]
[1725964201501,0.0471,57172.0,57171.0,0.087852]
[1725964201703,0.134551,57172.0,57171.0,0.087852]
[1725964202800,0.294551,57172.0,57171.0,0.0004]
[1725964203198,0.134551,57172.0,57171.0,0.0004]
[1725964203397,0.134551,57172.0,57171.0,0.0034]
[1725964204694,0.134551,57172.0,57171.0,0.094852]
[1725964205294,0.134551,57172.0,57171.0,0.0074]
[1725964205492,0.294551,57172.0,57171.0,0.0074]
[1725964206501,0.294551,57172.0,57171.0,0.094852]
[1725964206708,0.294551,57172.0,57171.0,0.084852]
[1725964207506,0.294551,57172.0,57167.0,0.087457]
[1725964207507,0.087458,57168.0,57167.0,0.087457]
[1725964208307,0.087452,57171.0,57170.0,0.087452]
[1725964208505,0.087448,57174.0,57173.0,0.087449]
[1725964209811,0.087445,57177.0,57176.0,0.087442]
[1725964210011,0.087445,57177.0,57176.0,0.087842]
[1725964212105,0.089445,57177.0,57176.0,0.087842]
[1725964212502,0.089445,57177.0,57176.0,0.089842]
[1725964212702,0.21973532,57177.0,57176.0,0.089842]
[1725964212911,0.21973532,57177.0,57176.0,0.090842]
[1725964212912,0.21773532,57177.0,57176.0,0.090842]
[1725964213107,0.21773532,57177.0,57176.0,0.093842]
[1725964213603,0.37773532,57177.0,57176.0,0.0064]
[1725964213802,0.087451,57172.0,57171.0,0.0041]
[1725964214010,0.087451,57172.0,57170.0,0.0004]
[1725964214011,0.087452,57171.0,57170.0,0.0004]
[1725964214202,0.17777912,57171.0,57170.0,0.0004]
[1725964214402,0.23146001,57171.0,57170.0,0.0004]
[1725964214706,0.26524599,57171.0,57170.0,0.0004]
[1725964214910,0.26524599,57171.0,57170.0,0.087854]
[1725964215514,0.13029399,57171.0,57170.0,0.087454]
[1725964215707,0.09650801,57171.0,57170.0,0.087454]
[1725964216105,0.09650801,57171.0,57170.0,0.091454]
[1725964216506,0.07661195,57171.0,57170.0,0.091454]
[1725964216706,0.07661195,57171.0,57170.0,0.178908]
[1725964217111,0.07661195,57171.0,57170.0,0.183908]
[1725964217314,0.07661195,57171.0,57170.0,0.096454]
[1725964217509,0.07661195,57171.0,57170.0,0.183908]
[1725964217710,0.09650801,57171.0,57170.0,0.179908]
[1725964217907,0.09650801,57171.0,57170.0,0.184908]
[1725964218211,0.13028981,57171.0,57170.0,0.184908]
[1725964218405,0.07660892,57171.0,57170.0,0.184908]
[1725964218608,0.07760892,57171.0,57170.0,0.715668]
[1725964218816,0.07760892,57171.0,57170.0,0.710668]
[1725964219012,0.13128981,57171.0,57170.0,0.714668]
[1725964219510,0.13128981,57171.0,57170.0,0.710668]
[1725964219704,0.13128981,57171.0,57170.0,0.715668]
[1725964220011,0.13128981,57171.0,57170.0,0.190908]
[1725964220703,0.087442,57178.0,57177.0,0.087443]
[1725964220900,0.087442,57178.0,57177.0,0.087843]
[1725964222004,0.089442,57178.0,57177.0,0.087843]
[1725964222401,0.002,57178.0,57177.0,0.087843]
[1725964222611,0.002,57178.0,57177.0,0.275286]
[1725964222815,0.002,57178.0,57177.0,0.187843]
[1725964223111,0.002,57178.0,57177.0,0.2131099]
[1725964223307,0.006,57178.0,57177.0,0.2131099]
[1725964223907,0.002,57178.0,57177.0,0.2131099]
[1725964224222,0.006,57178.0,57177.0,0.2131099]
[1725964224815,0.003,57178.0,57177.0,0.2131099]
[1725964225022,0.005,57178.0,57177.0,0.2131099]
[1725964227307,0.005,57178.0,57177.0,0.3005529]
[1725964227807,0.13527824,57178.0,57177.0,0.29407696]
[1725964228008,0.13527824,57178.0,57177.0,0.20663396]
[1725964228810,0.10149906,57178.0,57177.0,0.20663396]
[1725964230309,0.28894006,57178.0,57177.0,0.087443]
[1725964230804,0.087449,57174.0,57173.0,0.087447]
[1725964231006,0.18394806,57174.0,57173.0,0.087447]
[1725964231205,0.18395505,57174.0,57173.0,0.087447]
[1725964231807,0.087454,57171.0,57170.0,0.087452]
[1725964232006,0.28396005,57171.0,57170.0,0.087452]
[1725964232310,0.087458,57168.0,57167.0,0.087458]
[1725964232512,0.28396405,57168.0,57167.0,0.087458]
[1725964233520,0.28496405,57168.0,57167.0,0.094458]
[1725964234212,0.18496405,57168.0,57167.0,0.094458]
[1725964235310,0.18596405,57168.0,57167.0,0.101458]
[1725964235810,0.089458,57168.0,57167.0,0.101458]
[1725964237713,0.1155159,57168.0,57167.0,0.101458]
[1725964238324,0.1625159,57168.0,57167.0,0.101458]
[1725964243016,0.136458,57168.0,57167.0,0.101458]
[1725964250719,0.23297621,57168.0,57167.0,0.101458]
[1725964250922,0.40687397,57168.0,57167.0,0.101458]
[1725964251231,0.49433197,57168.0,57167.0,0.014]
[1725964251427,0.32043421,57168.0,57167.0,0.014]
[1725964251633,0.36933421,57168.0,57167.0,0.014]
[1725964251823,1.49409421,57168.0,57167.0,0.014]
[1725964252025,1.55682677,57168.0,57167.0,0.014]
[1725964252229,0.95682677,57168.0,57167.0,0.014]
[1725964252624,1.55682677,57168.0,57167.0,0.014]
[1725964255838,1.59061634,57168.0,57167.0,0.00956993]
[1725964256235,1.69062686,57168.0,57167.0,0.00956993]
[1725964256537,1.09062686,57168.0,57167.0,0.00956993]
[1725964258835,0.897576,57168.0,57167.0,0.00956993]
[1725964260637,0.985034,57168.0,57167.0,0.00956993]
[1725964260838,1.585034,57168.0,57167.0,0.00956993]
[1725964261041,1.585034,57168.0,57160.0,0.0041]
[1725964261042,0.174934,57161.0,57160.0,0.0041]
[1725964261339,0.087478,57154.0,57151.0,0.08731359]
[1725964261531,0.08748,57153.0,57152.0,0.06993494]
[1725964261731,0.087481,57152.0,57151.0,0.06993494]
[1725964261940,0.187481,57152.0,57151.0,0.06993494]
[1725964262129,0.087483,57151.0,57150.0,0.06993494]
[1725964262331,0.174968,57150.0,57149.0,0.06993494]
[1725964262541,0.187484,57150.0,57147.0,0.06993494]
[1725964262840,0.087496,57142.0,57141.0,0.087497]
[1725964263246,0.1,57143.0,57140.0,0.02498785]
[1725964263439,0.187495,57143.0,57142.0,0.0004]
[1725964264242,0.247495,57143.0,57142.0,0.0004]
[1725964264638,0.2734051,57143.0,57142.0,0.0004]
[1725964265542,0.3609001,57143.0,57142.0,0.0004]
[1725964265743,0.39570648,57143.0,57142.0,0.0074]
[1725964266140,0.39670648,57143.0,57142.0,0.0144]
[1725964267044,0.39470648,57143.0,57142.0,0.0054]
[1725964269642,1.51970648,57143.0,57142.0,0.0054]
[1725964270242,1.4859001,57143.0,57142.0,0.0054]
[1725964270848,0.3609001,57143.0,57142.0,0.0054]
[1725964273445,0.7609001,57143.0,57142.0,0.0054]
[1725964284061,0.7009001,57143.0,57142.0,0.0054]
[1725964286658,0.80468742,57143.0,57142.0,0.0054]
[1725964287549,0.7009001,57143.0,57142.0,0.0054]
[1725964292358,0.7009001,57143.0,57142.0,0.07521387]
[1725964293261,0.7009001,57143.0,57142.0,0.0054]
[1725964296171,0.174998,57140.0,57138.0,0.08739505]
[1725964296463,0.175012,57136.0,57135.0,0.08739505]
[1725964296764,0.08751,57133.0,57132.0,0.08739505]
[1725964296981,0.18751,57133.0,57132.0,0.08739505]
[1725964298356,0.087512,57132.0,57131.0,0.08739505]
[1725964298560,0.087512,57132.0,57131.0,0.21365298]
[1725964299168,0.087512,57132.0,57131.0,0.17490805]
[1725964300167,0.087512,57132.0,57131.0,0.087513]
[1725964300469,0.087512,57132.0,57131.0,0.30111328]
[1725964300665,0.087512,57132.0,57131.0,0.30110714]
[1725964300970,0.088512,57132.0,57131.0,0.30110714]
[1725964301166,0.11391412,57132.0,57131.0,0.17490805]
[1725964301368,0.11391412,57132.0,57131.0,0.30108233]
[1725964301669,0.11391412,57132.0,57131.0,0.17490805]
[1725964301872,0.11391412,57132.0,57131.0,0.087513]
[1725964302167,0.087513,57131.0,57130.0,0.08739505]
[1725964302469,0.087515,57130.0,57129.0,0.08739505]
[1725964302768,0.187515,57130.0,57129.0,0.21357776]
[1725964302972,0.087518,57128.0,57127.0,0.087519]
[1725964303173,0.12132803,57128.0,57127.0,0.087519]
[1725964303863,0.12132802,57128.0,57127.0,0.087519]
[1725964304768,0.24317321,57128.0,57127.0,0.087519]
[1725964305071,0.24317321,57128.0,57122.0,0.0041]
[1725964305072,0.087526,57123.0,57122.0,0.0041]
[1725964305274,0.22133602,57123.0,57120.0,0.02551371]
[1725964305467,0.03381109,57122.0,57121.0,0.087529]
[1725964305666,0.13381109,57122.0,57121.0,0.087529]
[1725964305975,0.53381109,57122.0,57121.0,0.087529]
[1725964306976,0.53481109,57122.0,57121.0,0.096529]
[1725964307561,0.53581109,57122.0,57121.0,0.105529]
[1725964309674,0.62333809,57122.0,57121.0,0.105529]
[1725964310178,0.589527,57122.0,57121.0,0.105529]
[1725964310980,0.589527,57122.0,57121.0,0.2312707]
[1725964310981,0.54573498,57122.0,57121.0,0.2312707]
[1725964317887,0.54573498,57122.0,57121.0,0.105529]
[1725964322388,0.54573498,57122.0,57121.0,0.15795748]
[1725964323479,0.54573498,57122.0,57121.0,0.105529]
[1725964323687,0.14573498,57122.0,57121.0,0.105529]
[1725964323886,0.0041,57130.0,57129.0,0.087516]